bitfinex/quotes_SOLUSD_20240714
["timestamp","ask_amount","ask_price","bid_price","bid_amount"]
[1720957946265,15.3626,145.45,145.42,1.37500538]
[1720957948071,1.718762,145.53,145.41,1.0551134]
[1720957948072,15.3626,145.43,145.41,1.0551134]
[1720957948770,15.3626,145.43,145.37,1.41592172]
[1720957949286,6.4016,145.42,145.37,1.41592172]
[1720957952397,15.2263,145.41,145.37,1.41592172]
[1720957952800,15.2263,145.41,145.37,0.040761]
[1720957962005,6.4016,145.4,145.37,0.040761]
[1720957981036,6.4016,145.4,145.34,0.91563792]
[1720957981206,6.4016,145.4,145.34,45.91563792]
[1720957992935,6.4016,145.4,145.34,45.0]
[1720957993436,16.5203,145.46,145.36,15.0]
[1720957993627,6.5459,145.49,145.39,35.68]
[1720957993835,6.5459,145.49,145.4,10.32832004]
[1720957994044,6.5459,145.49,145.41,65.0]
[1720957994216,6.5459,145.49,145.42,1.02572968]
[1720957994420,6.5459,145.49,145.43,1.02572602]
[1720957994815,16.5203,145.5,145.43,1.02572602]
[1720957998130,16.5203,145.5,145.41,45.0]
[1720957998731,6.5459,145.49,145.42,1.0260542]
[1720957999531,6.5459,145.49,145.41,1.02623483]
[1720958000227,6.5459,145.49,145.41,46.02623483]
[1720958001245,6.5459,145.49,145.41,1.02623483]
[1720958006447,1.71839614,145.48,145.41,1.02623483]
[1720958006750,15.5376,145.47,145.41,1.02623483]
[1720958007252,15.5376,145.47,145.37,1.02708062]
[1720958008337,15.5376,145.47,145.37,46.02708062]
[1720958008534,15.5376,145.47,145.37,45.0]
[1720958009232,15.5376,145.47,145.38,1.02718844]
[1720958018258,15.5376,145.47,145.38,0.52718844]
[1720958018761,15.5376,145.47,145.37,46.74288844]
[1720958030583,15.5376,145.47,145.38,16.0126]
[1720958030763,15.5376,145.47,145.39,45.0]
[1720958039685,6.0958,145.46,145.35,23.21179431]
[1720958039885,27.81466003,145.46,145.35,16.0126]
[1720958040066,7.81466003,145.46,145.35,16.0126]
[1720958040390,6.0958,145.46,145.35,16.0126]
[1720958040697,7.81459008,145.46,145.35,16.0126]
[1720958041068,1.71894354,145.45,145.35,16.0126]
[1720958041388,8.59424354,145.45,145.36,45.0]
[1720958041892,7.81482474,145.46,145.36,45.0]
[1720958043897,6.0958,145.46,145.36,45.0]
[1720958046590,12.9706,145.46,145.36,45.0]
[1720958048217,6.8755,145.45,145.36,45.0]
[1720958050006,8.59435663,145.45,145.36,45.0]
[1720958051498,15.5923,145.44,145.36,45.0]
[1720958073028,6.5947,145.43,145.36,45.0]
[1720958076439,6.5947,145.43,145.33,125.8791946]
[1720958076631,6.5947,145.43,145.34,45.0]
[1720958082730,15.213,145.42,145.34,45.0]
[1720958113675,15.213,145.42,145.34,75.16106238]
[1720958114266,15.213,145.42,145.34,54.48106238]
[1720958114568,15.213,145.42,145.34,69.69406238]
[1720958115041,6.5947,145.43,145.35,20.0]
[1720958115240,6.5947,145.43,145.36,45.0]
[1720958128882,15.1314,145.42,145.36,45.0]
[1720958129288,15.1314,145.42,145.36,47.84354804]
[1720958145391,6.3114,145.41,145.36,47.84354804]
[1720958147204,6.3114,145.41,145.34,15.63196676]
[1720958147404,6.3114,145.41,145.34,11.17641963]
[1720958147596,16.2442,145.4,145.34,2.74024249]
[1720958147796,16.2442,145.4,145.33,123.14061324]
[1720958149103,16.2442,145.4,145.34,45.0]
[1720958162710,16.2442,145.4,145.34,65.68]
[1720958162903,16.2442,145.4,145.35,20.0]
[1720958163106,16.2442,145.4,145.36,45.0]
[1720958168725,16.2442,145.4,145.35,45.0]
[1720958171821,6.2862,145.39,145.34,9.48028643]
[1720958172017,6.2862,145.39,145.33,125.91818523]
[1720958174525,6.2862,145.39,145.34,45.0]
[1720958220364,12.9536,145.36,145.31,0.2]
[1720958220566,1.72030432,145.35,145.31,0.2]
[1720958220764,4.8267,145.33,145.27,0.8551134]
[1720958220971,1.72071778,145.32,145.27,0.8551134]
[1720958221361,6.8858,145.23,145.21,0.2]
[1720958221563,1.72181849,145.22,145.21,0.2]
[1720958222094,6.0739,145.25,145.21,0.2]
[1720958222384,8.60452362,145.28,145.22,6.8859]
[1720958223178,6.884,145.27,145.21,0.2]
[1720958223381,6.884,145.27,145.21,7.0865]
[1720958223382,1.72137351,145.26,145.21,7.0865]
[1720958223585,8.60431596,145.29,145.22,6.886]
[1720958223777,8.60431596,145.29,145.23,6.8853]
[1720958223978,1.72121596,145.29,145.21,0.2]
[1720958224175,46.72121596,145.29,145.22,6.886]
[1720958224379,46.72121596,145.29,145.21,0.2]
[1720958224380,1.72121596,145.29,145.23,6.8854]
[1720958224569,1.72121596,145.29,145.24,6.8847]
[1720958224765,1.72121596,145.29,145.25,6.8845]
[1720958225286,6.0739,145.3,145.26,6.8839]
[1720958225671,6.0739,145.3,145.28,6.8832]
[1720958225860,6.4498,145.36,145.21,0.2]
[1720958226063,1.72026142,145.35,145.31,6.8817]
[1720958226270,1.72026142,145.35,145.3,6.8821]
[1720958226471,1.72026142,145.35,145.21,75.2]
[1720958226664,1.72026142,145.35,145.21,0.2]
[1720958226874,6.8818,145.31,145.21,0.2]
[1720958227071,1.72086259,145.3,145.21,0.2]
[1720958227275,8.60366092,145.29,145.21,0.2]
[1720958227475,1.72086092,145.29,145.21,0.2]
[1720958227675,46.72099061,145.3,145.21,0.2]
[1720958227888,1.72094449,145.29,145.21,0.2]
[1720958228782,8.60384449,145.29,145.21,0.2]
[1720958229773,1.72094449,145.29,145.21,0.2]
[1720958229981,6.4498,145.27,145.21,0.2]
[1720958230173,46.72161704,145.26,145.21,0.2]
[1720958230384,6.8851,145.24,145.21,0.2]
[1720958230686,1.72179077,145.23,145.21,0.2]
[1720958231892,8.60759077,145.23,145.21,0.2]
[1720958232098,46.72202098,145.22,145.21,0.2]
[1720958232264,53.60812098,145.22,145.21,0.2]
[1720958232467,46.72202098,145.22,145.21,0.2]
[1720958232692,1.72202098,145.22,145.21,0.2]
[1720958232987,1.72188902,145.23,145.21,0.2]
[1720958233163,46.72188902,145.23,145.21,0.2]
[1720958233782,1.72188902,145.23,145.21,0.2]
[1720958234084,1.72171588,145.25,145.21,0.2]
[1720958236497,5.49326933,145.24,145.13,7.20008944]
[1720958236702,5.49326933,145.24,145.12,0.8551134]
[1720958236703,6.8867,145.21,145.12,0.8551134]
[1720958236901,1.72222876,145.2,145.12,0.8551134]
[1720958237087,46.72222876,145.2,145.12,0.8551134]
[1720958238986,6.8857,145.23,145.12,0.8551134]
[1720958239169,1.72197129,145.23,145.12,0.8551134]
[1720958239376,6.8843,145.26,145.12,0.8551134]
[1720958239594,1.72155442,145.25,145.12,0.8551134]
[1720958239788,6.8852,145.24,145.12,0.8551134]
[1720958240089,1.72175893,145.23,145.12,0.8551134]
[1720958240303,1.72153065,145.27,145.12,21.5851134]
[1720958240493,1.72125561,145.27,145.13,65.0]
[1720958240796,1.72120084,145.26,145.13,65.0]
[1720958240981,1.72126936,145.27,145.13,65.0]
[1720958241294,1.72127233,145.26,145.13,75.0]
[1720958241473,1.72119745,145.28,145.14,20.73]
[1720958241790,1.72098022,145.3,145.16,22.0885]
[1720958241989,1.72095843,145.29,145.16,22.0885]
[1720958242292,1.72095843,145.33,145.17,45.0]
[1720958242592,1.72096029,145.32,145.17,45.0]
[1720958243172,6.8825,145.3,145.17,45.0]
[1720958243383,1.72103372,145.29,145.17,45.0]
[1720958244383,8.60393372,145.29,145.17,45.0]
[1720958244586,1.72113213,145.28,145.17,45.0]
[1720958245277,1.7210436,145.29,145.17,45.0]
[1720958245677,6.8815,145.32,145.17,45.0]
[1720958245874,28.60271279,145.31,145.17,45.0]
[1720958247172,21.72081279,145.31,145.17,45.0]
[1720958247381,21.72081279,145.31,145.17,65.73]
[1720958247584,1.72081279,145.31,145.18,20.0]
[1720958247785,1.72081279,145.31,145.19,45.0]
[1720958248179,1.72081279,145.31,145.17,2.28794891]
[1720958248495,1.72081279,145.31,145.17,22.28794891]
[1720958248496,6.8818,145.31,145.17,22.28794891]
[1720958248694,1.72075238,145.3,145.17,22.28794891]
[1720958249086,1.72078092,145.29,145.17,22.28794891]
[1720958249590,1.72078092,145.29,145.18,45.0]
[1720958250593,1.72095534,145.3,145.18,45.0]
[1720958250890,1.7209227,145.29,145.18,45.0]
[1720958251193,1.72092211,145.3,145.18,45.0]
[1720958251395,1.72090932,145.29,145.18,45.0]
[1720958251590,6.8809,145.33,145.18,45.0]
[1720958251790,46.72074657,145.32,145.18,45.0]
[1720958252408,53.60224657,145.32,145.18,45.0]
[1720958252608,46.72074657,145.32,145.17,22.28794891]
[1720958253085,6.8822,145.31,145.17,22.28794891]
[1720958253289,46.72105298,145.3,145.17,22.28794891]
[1720958253494,1.72105588,145.29,145.17,22.28794891]
[1720958253997,13.0133,145.28,145.17,2.28794891]
[1720958254291,1.72136274,145.27,145.16,22.0885]
[1720958254493,1.72129782,145.26,145.16,22.0885]
[1720958254877,1.7212035,145.27,145.16,22.0885]
[1720958255077,1.72121253,145.26,145.16,22.0885]
[1720958255279,1.72124186,145.27,145.16,22.0885]
[1720958255478,1.72129516,145.26,145.16,22.0885]
[1720958255700,1.72129443,145.27,145.16,22.0885]
[1720958255904,1.72121673,145.26,145.16,22.0885]
[1720958256079,1.72125076,145.27,145.16,22.0885]
[1720958256504,1.72132146,145.26,145.16,22.0885]
[1720958256679,1.72119023,145.27,145.16,22.0885]
[1720958256876,6.8842,145.26,145.16,22.0885]
[1720958257096,1.72117963,145.26,145.16,22.0885]
[1720958258097,46.72143908,145.27,145.16,22.0885]
[1720958258300,1.72143214,145.26,145.16,22.0885]
[1720958266006,1.72143214,145.26,145.12,19.19094595]
[1720958267624,8.60563214,145.26,145.13,20.0]
[1720958267810,45.0,145.25,145.13,20.0]
[1720958268007,1.72174015,145.24,145.13,20.0]
[1720958268318,1.7217405,145.23,145.13,20.0]
[1720958268506,1.7217405,145.23,145.14,45.0]
[1720958268708,1.72165709,145.26,145.14,45.0]
[1720958269007,46.72165709,145.26,145.14,45.0]
[1720958270020,46.72165709,145.26,145.13,20.0]
[1720958270214,1.72165709,145.26,145.13,20.0]
[1720958270426,6.1301,145.28,145.13,40.73]
[1720958270610,1.72153221,145.3,145.14,24.37852182]
[1720958270812,1.72102235,145.29,145.15,20.0]
[1720958271333,1.7210238,145.31,145.16,45.0]
[1720958271496,1.7210238,145.31,145.17,20.0]
[1720958271851,1.7210238,145.31,145.18,45.0]
[1720958272399,46.7210238,145.31,145.18,45.0]
[1720958272695,53.6029238,145.31,145.18,45.0]
[1720958274618,6.8823,145.3,145.18,45.0]
[1720958274810,1.721017,145.3,145.18,45.0]
[1720958275013,1.72077833,145.31,145.19,15.5485]
[1720958275219,8.22672452,145.32,145.2,45.0]
[1720958276303,1.7206256,145.31,145.2,45.0]
[1720958277710,8.22672965,145.32,145.2,45.0]
[1720958278826,1.72050965,145.31,145.2,45.0]
[1720958284740,8.60240965,145.31,145.2,45.0]
[1720958285607,1.72050965,145.31,145.2,45.0]
[1720958287334,6.5061,145.32,145.2,45.0]
[1720958287723,1.72055339,145.31,145.2,45.0]
[1720958289241,6.5061,145.32,145.2,45.0]
[1720958289421,6.5061,145.32,145.21,6.3598]
[1720958289624,6.5061,145.32,145.22,45.0]
[1720958290353,8.22665752,145.32,145.22,45.0]
[1720958291044,15.10825752,145.32,145.22,45.0]
[1720958294538,6.8818,145.31,145.22,45.0]
[1720958294721,8.60248564,145.31,145.22,45.0]
[1720958295919,13.3876,145.32,145.22,45.0]
[1720958296123,1.72060394,145.31,145.22,45.0]
[1720958296728,13.3876,145.32,145.22,45.0]
[1720958297126,1.72060508,145.31,145.22,45.0]
[1720958297334,13.3876,145.32,145.22,45.0]
[1720958298342,1.72060606,145.31,145.22,45.0]
[1720958300543,13.3876,145.32,145.22,45.0]
[1720958301022,1.72057523,145.31,145.22,45.0]
[1720958302050,13.3876,145.32,145.22,45.0]
[1720958303152,1.72059053,145.31,145.22,45.0]
[1720958305046,13.3876,145.32,145.22,45.0]
[1720958305438,6.8815,145.32,145.22,45.0]
[1720958305750,1.72059254,145.31,145.22,45.0]
[1720958305953,6.8815,145.32,145.22,45.0]
[1720958307033,1.72057815,145.31,145.22,45.0]
[1720958310147,1.72058365,145.32,145.22,45.0]
[1720958311171,8.60198365,145.32,145.22,45.0]
[1720958311335,1.72070184,145.31,145.22,45.0]
[1720958314249,1.72070184,145.31,145.23,15.5987]
[1720958315464,6.8822,145.31,145.23,15.5987]
[1720958315672,1.72069804,145.3,145.23,15.5987]
[1720958315875,1.7207004,145.29,145.23,15.5987]
[1720958316077,6.8826,145.3,145.23,15.5987]
[1720958316376,1.72094718,145.29,145.23,15.5987]
[1720958318365,6.8822,145.31,145.23,15.5987]
[1720958318583,1.72083062,145.3,145.23,15.5987]
[1720958318949,1.72071808,145.31,145.23,15.5987]
[1720958320160,6.8828,145.29,145.23,15.5987]
[1720958320465,1.72096056,145.28,145.23,15.5987]
[1720958321145,1.72095868,145.29,145.23,15.5987]
[1720958323150,6.8819,145.31,145.23,15.5987]
[1720958323460,1.72082042,145.3,145.23,15.5987]
[1720958325684,8.60322042,145.3,145.23,15.5987]
[1720958332380,1.72082042,145.3,145.23,15.5987]
[1720958332554,1.72084975,145.29,145.23,15.5987]
[1720958332757,1.72084975,145.3,145.23,15.5987]
[1720958332981,1.72085185,145.29,145.23,15.5987]
[1720958334062,1.72085267,145.3,145.23,15.5987]
[1720958334259,1.72084241,145.29,145.23,15.5987]
[1720958334489,1.72084311,145.3,145.23,15.5987]
[1720958334781,1.72084288,145.29,145.23,15.5987]
[1720958334975,1.72084361,145.3,145.23,15.5987]
[1720958335187,1.72084353,145.29,145.23,15.5987]
[1720958335376,1.72084427,145.3,145.23,15.5987]
[1720958335677,1.72084427,145.29,145.23,15.5987]
[1720958335991,6.8819,145.31,145.23,15.5987]
[1720958335992,1.72084493,145.3,145.23,15.5987]
[1720958336196,1.72084418,145.29,145.23,15.5987]
[1720958336363,1.72084477,145.3,145.23,15.5987]
[1720958336567,6.8819,145.31,145.23,15.5987]
[1720958336568,1.7208453,145.29,145.23,15.5987]
[1720958336759,1.72084585,145.3,145.23,15.5987]
[1720958336982,1.72084585,145.29,145.23,15.5987]
[1720958337262,1.72084591,145.3,145.23,15.5987]
[1720958337502,1.72084666,145.29,145.23,15.5987]
[1720958337701,8.60364666,145.29,145.23,15.5987]
[1720958338296,1.72084666,145.29,145.23,15.5987]
[1720958338487,1.72121223,145.28,145.23,15.5987]
[1720958339002,1.7210732,145.29,145.23,15.5987]
[1720958342706,1.72089276,145.3,145.23,15.5987]
[1720958342906,1.7209077,145.29,145.23,15.5987]
[1720958343105,28.60221105,145.32,145.23,15.5987]
[1720958343284,6.882,145.31,145.23,15.5987]
[1720958343487,1.72106803,145.3,145.23,15.5987]
[1720958343688,1.72106447,145.29,145.23,15.5987]
[1720958344489,8.60386447,145.29,145.23,15.5987]
[1720958344691,1.7212181,145.28,145.23,15.5987]
[1720958347008,1.72107352,145.31,145.23,15.5987]
[1720958347218,46.72107352,145.31,145.23,15.5987]
[1720958347405,20.0,145.3,145.23,15.5987]
[1720958347604,1.72110131,145.29,145.23,15.5987]
[1720958348694,26.10370131,145.3,145.23,15.5987]
[1720958349000,8.60401528,145.29,145.23,15.5987]
[1720958349403,6.8833,145.28,145.23,15.5987]
[1720958349601,1.72133379,145.27,145.23,15.5987]
[1720958349898,1.72130581,145.26,145.23,15.5987]
[1720958350488,1.72125703,145.28,145.23,15.5987]
[1720958353121,8.60445703,145.28,145.23,15.5987]
[1720958353411,1.72125703,145.28,145.23,15.5987]
[1720958361624,8.60455703,145.28,145.23,15.5987]
[1720958369133,1.72110854,145.29,145.23,15.5987]
[1720958369324,1.72110493,145.29,145.23,15.5987]
[1720958369734,1.72110493,145.29,145.24,1.37688248]
[1720958371245,1.72110493,145.29,145.23,15.5987]
[1720958371848,1.72110493,145.29,145.24,1.37675121]
[1720958372143,1.72110493,145.29,145.23,15.5987]
[1720958372845,8.60410493,145.29,145.24,1.37674605]
[1720958373033,8.60410493,145.29,145.23,15.5987]
[1720958374544,1.72110493,145.29,145.23,15.5987]
[1720958375044,6.8837,145.28,145.23,15.5987]
[1720958376745,6.8839,145.27,145.23,15.5987]
[1720958377045,1.72120812,145.26,145.23,15.5987]
[1720958377239,6.8839,145.27,145.23,15.5987]
[1720958377446,1.72121073,145.26,145.23,15.5987]
[1720958379530,6.8833,145.28,145.23,15.5987]
[1720958379733,1.72125828,145.27,145.23,15.5987]
[1720958380051,6.8826,145.3,145.24,1.37698551]
[1720958380244,1.72097713,145.29,145.23,15.5987]
[1720958383152,1.72097713,145.29,145.25,6.3259]
[1720958383332,41.41340306,145.35,145.27,15.9068]
[1720958383333,8.60279375,145.31,145.27,15.9068]
[1720958383527,6.8813,145.32,145.27,17.28340805]
[1720958383731,1.72063473,145.31,145.27,17.28340805]
[1720958384462,1.72063473,145.31,145.28,1.37651219]
[1720958384829,1.72063473,145.31,145.27,15.9068]
[1720958387250,1.72066749,145.32,145.27,15.9068]
[1720958389752,8.60206749,145.32,145.27,15.9068]
[1720958389954,1.72066968,145.31,145.27,15.9068]
[1720958393141,6.8815,145.32,145.27,15.9068]
[1720958393448,1.7206457,145.31,145.27,15.9068]
[1720958398849,6.8807,145.34,145.27,15.9068]
[1720958399053,1.72046081,145.33,145.27,15.9068]
[1720958399557,1.72046081,145.33,145.28,0.91952199]
[1720958399738,1.72046081,145.33,145.28,1.37637004]
[1720958400254,6.8807,145.34,145.29,6.3633]
[1720958400561,6.8802,145.35,145.31,16.3212]
[1720958400745,1.72028919,145.34,145.31,16.3212]
[1720958402347,8.60088919,145.34,145.31,16.3212]
[1720958403150,1.72028919,145.34,145.31,16.3212]
[1720958403370,1.72052566,145.33,145.31,16.3212]
[1720958403658,37.198,145.37,145.31,16.3212]
[1720958403659,1.72052566,145.36,145.31,16.3212]
[1720958403858,6.881,145.33,145.31,16.3212]
[1720958404064,1.72052565,145.32,145.31,16.3212]
[1720958404745,45.0,145.36,145.31,16.3212]
[1720958404746,6.8807,145.34,145.31,16.3212]
[1720958404947,1.72051942,145.33,145.29,6.3633]
[1720958405163,8.60151942,145.33,145.29,6.3633]
[1720958405362,8.60151942,145.33,145.28,15.1082]
[1720958405663,1.72051942,145.33,145.28,15.1082]
[1720958405863,6.8828,145.29,145.23,15.1082]
[1720958406065,1.72114205,145.28,145.23,15.1082]
[1720958406564,1.72108239,145.29,145.24,1.37686591]
[1720958406862,6.8816,145.32,145.24,1.37686591]
[1720958407054,21.72086931,145.31,145.23,15.1082]
[1720958407256,28.60276931,145.31,145.23,15.1082]
[1720958408871,1.72086931,145.31,145.24,1.35705497]
[1720958409053,21.72059636,145.33,145.24,46.35705497]
[1720958409368,1.72059769,145.32,145.24,46.35705497]
[1720958409569,1.72059769,145.32,145.24,45.0]
[1720958409771,8.60209769,145.32,145.23,15.1082]
[1720958410247,6.882,145.31,145.23,15.1082]
[1720958410449,1.72092828,145.3,145.23,15.1082]
[1720958410669,1.72092496,145.29,145.23,15.1082]
[1720958410848,1.72089934,145.31,145.23,15.1082]
[1720958411249,1.72089934,145.31,145.24,1.37502241]
[1720958411669,1.72089934,145.31,145.24,0.4965146]
[1720958411873,1.72089934,145.31,145.23,15.1082]
[1720958413364,6.8809,145.33,145.23,15.1082]
[1720958413558,1.7208381,145.32,145.23,15.1082]
[1720958414272,1.7208381,145.32,145.24,1.37669041]
[1720958414472,1.7208381,145.32,145.24,46.37659419]
[1720958414778,1.72062283,145.33,145.24,46.37659419]
[1720958414969,1.72062912,145.32,145.24,46.37659419]
[1720958415152,1.72062912,145.32,145.24,45.0]
[1720958415847,1.72062945,145.33,145.24,45.0]
[1720958416053,1.72062978,145.32,145.24,45.0]
[1720958416268,1.72062978,145.34,145.24,45.0]
[1720958416467,6.881,145.33,145.24,45.0]
[1720958416673,1.72075902,145.32,145.23,15.1082]
[1720958416973,8.60100358,145.34,145.24,45.0]
[1720958417177,20.0,145.33,145.24,45.0]
[1720958417380,1.72060368,145.32,145.24,45.0]
[1720958418575,8.60200368,145.32,145.23,15.1082]
[1720958418975,1.72060368,145.32,145.23,15.1082]
[1720958419164,1.72060368,145.32,145.24,1.37659885]
[1720958419367,8.60200368,145.32,145.23,15.1082]
[1720958419557,1.72076343,145.31,145.23,15.1082]
[1720958422986,8.60266343,145.31,145.23,15.1082]
[1720958423281,1.72076343,145.31,145.23,15.1082]
[1720958423481,6.8818,145.31,145.23,15.1082]
[1720958423675,1.72101159,145.3,145.23,15.1082]
[1720958425179,1.72080946,145.32,145.23,15.1082]
[1720958426073,1.72085818,145.31,145.23,15.1082]
[1720958428166,1.72085818,145.31,145.24,0.7700654]
[1720958428364,1.72085818,145.31,145.25,1.37667888]
[1720958429586,1.72085818,145.31,145.24,1.37667925]
[1720958430281,1.72085818,145.31,145.23,15.1082]
[1720958431382,1.72085818,145.31,145.24,1.37668077]
[1720958432291,1.72085818,145.31,145.23,15.1082]
[1720958432468,21.72085818,145.31,145.23,15.1082]
[1720958435194,28.60265818,145.31,145.23,15.1082]
[1720958435369,21.72085818,145.31,145.23,15.1082]
[1720958437479,21.72085818,145.31,145.24,1.37681409]
[1720958437881,1.72085818,145.31,145.24,46.37681409]
[1720958438095,21.72071562,145.33,145.24,45.0]
[1720958438877,1.72071562,145.33,145.24,45.0]
[1720958439583,1.72071562,145.33,145.25,1.37653972]
[1720958439995,21.72071562,145.33,145.25,1.37653972]
[1720958440199,21.72071562,145.33,145.24,45.0]
[1720958443577,1.72071562,145.33,145.24,45.0]
[1720958443899,21.72043991,145.35,145.24,45.0]
[1720958444302,28.60033991,145.35,145.24,45.0]
[1720958448699,6.8804,145.34,145.24,45.0]
[1720958448884,1.72067362,145.33,145.24,45.0]
[1720958449084,1.72064423,145.32,145.24,45.0]
[1720958450018,1.72064319,145.33,145.24,45.0]
[1720958450201,1.72064697,145.32,145.24,45.0]
[1720958450587,1.7206244,145.34,145.24,45.0]
[1720958453587,46.7206244,145.34,145.23,15.1082]
[1720958454789,46.7206244,145.34,145.21,6.0175]
[1720958454790,6.4734,145.33,145.21,6.0175]
[1720958455115,21.72093438,145.32,145.21,6.0175]
[1720958456208,21.72093438,145.32,145.22,45.0]
[1720958457390,45.0,145.31,145.19,23.43891508]
[1720958457593,1.72104312,145.3,145.2,45.0]
[1720958457797,1.72104281,145.29,145.2,45.0]
[1720958458506,1.72104281,145.29,145.21,1.37683534]
[1720958458713,6.4734,145.28,145.19,23.43891508]
[1720958459011,1.72129993,145.27,145.19,16.2332]
[1720958459196,1.72130051,145.26,145.19,16.2332]
[1720958460215,1.72130444,145.27,145.19,16.2332]
[1720958460415,1.72125427,145.26,145.19,16.2332]
[1720958460592,1.72128984,145.27,145.19,16.2332]
[1720958460792,1.72129022,145.26,145.19,16.2332]
[1720958461013,1.72129022,145.26,145.2,1.37703218]
[1720958461809,1.72129065,145.27,145.19,16.2332]
[1720958462098,1.72129065,145.27,145.2,45.0]
[1720958462719,1.72129065,145.27,145.21,1.3769199]
[1720958463799,1.72129065,145.27,145.2,45.0]
[1720958464202,1.72129065,145.27,145.21,1.37690508]
[1720958464619,1.72129065,145.27,145.2,45.0]
[1720958465425,6.4734,145.28,145.2,45.0]
[1720958466714,1.72099285,145.27,145.2,45.0]
[1720958470412,1.72118348,145.26,145.2,45.0]
[1720958470611,1.72130645,145.27,145.19,16.2332]
[1720958470819,13.3567,145.28,145.19,16.2332]
[1720958470820,1.72131436,145.26,145.19,16.2332]
[1720958471723,1.72133942,145.25,145.17,2.81978586]
[1720958471905,6.8843,145.26,145.18,1.37721961]
[1720958472096,1.72157333,145.25,145.18,1.37721961]
[1720958472300,1.72157333,145.25,145.16,22.94437244]
[1720958472520,1.72157333,145.25,145.17,1.37727084]
[1720958472721,8.60657333,145.25,145.17,1.37727084]
[1720958473324,1.72157333,145.25,145.17,1.37727084]
[1720958473513,8.60561795,145.27,145.17,1.37727084]
[1720958473714,1.72151795,145.27,145.17,1.37727084]
[1720958474022,1.72151795,145.27,145.16,22.94437244]
[1720958474419,8.60531795,145.27,145.17,45.0]
[1720958474722,1.72151795,145.27,145.17,45.0]
[1720958475318,1.72151795,145.27,145.18,0.62847576]
[1720958475925,1.72151795,145.27,145.17,45.0]
[1720958476621,8.60561795,145.27,145.17,45.0]
[1720958477312,1.72151795,145.27,145.18,1.37704957]
[1720958477824,1.72151795,145.27,145.17,45.0]
[1720958478599,6.4734,145.28,145.18,1.37695882]
[1720958478804,8.19442785,145.28,145.18,1.37695882]
[1720958479633,6.4734,145.28,145.17,45.0]
[1720958479928,6.4734,145.28,145.18,1.37672756]
[1720958480111,1.72090946,145.27,145.18,1.37685071]
[1720958480422,6.4734,145.28,145.17,45.0]
[1720958481015,1.72097944,145.27,145.17,45.0]
[1720958481627,6.4734,145.28,145.18,1.37683822]
[1720958481919,6.4734,145.28,145.17,45.0]
[1720958482425,6.4734,145.28,145.18,1.3767554]
[1720958483804,6.4734,145.28,145.17,45.0]
[1720958485228,6.4734,145.28,145.18,1.37670651]
[1720958485616,6.4734,145.28,145.17,45.0]
[1720958486019,6.4734,145.28,145.17,52.2059312]
[1720958486907,6.4734,145.28,145.18,1.37671371]
[1720958487208,13.195,145.32,145.19,10.0]
[1720958487418,13.195,145.32,145.2,46.3764247]
[1720958487628,1.72053087,145.31,145.2,45.0]
[1720958488035,1.72053087,145.31,145.21,1.37650898]
[1720958488219,13.195,145.32,145.21,1.37650898]
[1720958488414,6.3137,145.32,145.22,16.477]
[1720958488621,6.3137,145.32,145.23,46.37638898]
[1720958488814,6.3137,145.32,145.24,1.37639513]
[1720958489021,8.03419491,145.32,145.23,45.0]
[1720958489317,14.91559491,145.32,145.23,45.0]
[1720958490029,6.3137,145.32,145.23,45.0]
[1720958490231,8.03419809,145.32,145.23,45.0]
[1720958490534,6.3137,145.32,145.23,45.0]
[1720958490735,6.3137,145.32,145.24,1.37639717]
[1720958491234,8.03418775,145.32,145.23,45.0]
[1720958491615,14.91558775,145.32,145.23,45.0]
[1720958495419,8.03418775,145.32,145.23,45.0]
[1720958495626,6.3137,145.32,145.23,45.0]
[1720958497638,6.3137,145.32,145.19,18.76463374]
[1720958497836,6.8822,145.31,145.19,18.76463374]
[1720958498046,1.72104616,145.3,145.19,18.76463374]
[1720958498229,1.72099958,145.29,145.19,18.76463374]